bitfinex/quotes_SOLUSD_20220105
["timestamp","ask_amount","ask_price","bid_price","bid_amount"]
[1641385990468,25.03674439,168.03,167.89,9.06]
[1641385990966,25.53674439,168.03,167.89,9.06]
[1641385991367,25.03674439,168.03,167.89,9.06]
[1641385991568,25.03674439,168.03,167.89,9.32]
[1641385991769,1.68330423,168.02,167.89,9.32]
[1641385991969,25.17840423,168.02,167.89,9.32]
[1641385992667,25.17840423,168.02,167.89,10.79846154]
[1641385993068,25.17840423,168.02,167.89,10.53846154]
[1641385993873,23.4951,168.02,167.89,10.53846154]
[1641385994471,23.4951,168.02,167.89,10.79846154]
[1641385999878,23.4951,168.02,167.9,23.2844]
[1641386000079,23.4951,168.02,167.91,8.56]
[1641386000482,23.4951,168.02,167.91,9.32]
[1641386000890,23.4951,168.02,167.91,10.79846154]
[1641386004716,23.4951,168.02,167.91,9.32]
[1641386004920,23.4951,168.02,167.91,9.06]
[1641386005119,0.06,168.01,167.91,9.06]
[1641386005323,2.69824335,168.0,167.91,9.06]
[1641386005526,2.69824335,168.0,167.91,0.5]
[1641386005925,2.69824335,168.0,167.88,8.56]
[1641386006127,8.62,167.99,167.83,8.56]
[1641386006425,10.59846154,167.99,167.84,1.47846154]
[1641386006625,8.32918342,167.98,167.83,35.09587311]
[1641386006826,24.2592,167.97,167.83,35.09587311]
[1641386007227,24.7592,167.97,167.83,35.09587311]
[1641386007428,24.7592,167.97,167.83,35.59587311]
[1641386007629,26.44250423,167.97,167.83,34.09587311]
[1641386007830,26.44250423,167.97,167.83,7.56]
[1641386008032,26.44250423,167.97,167.83,7.82]
[1641386009329,1.68330423,167.95,167.83,7.56]
[1641386009531,2.49782496,167.94,167.83,7.56]
[1641386010533,2.49782496,167.94,167.83,7.82]
[1641386011533,2.49782496,167.94,167.83,32.6313]
[1641386015339,2.49782496,167.94,167.83,7.82]
[1641386015840,2.49782496,167.94,167.83,0.5]
[1641386016042,2.99782496,167.94,167.8,32.6555]
[1641386016442,3.25782496,167.94,167.8,32.6555]
[1641386016841,2.99782496,167.94,167.8,32.6555]
[1641386017445,3.25782496,167.94,167.8,32.6555]
[1641386017841,23.5195,167.93,167.8,32.6555]
[1641386018244,24.0195,167.93,167.8,32.6555]
[1641386018946,24.0195,167.93,167.8,9.06]
[1641386019146,24.0195,167.93,167.8,9.32]
[1641386019546,0.06,167.92,167.8,9.32]
[1641386020145,0.06,167.92,167.8,9.06]
[1641386020545,8.56,167.91,167.8,0.5]
[1641386020747,20.48708552,167.9,167.8,0.5]
[1641386020944,20.98708552,167.9,167.77,100.61]
[1641386022352,21.04708552,167.9,167.77,76.1125]
[1641386022753,21.30708552,167.9,167.77,76.1125]
[1641386022954,21.04708552,167.9,167.77,76.1125]
[1641386023576,0.56,167.9,167.77,76.1125]
[1641386023776,0.56,167.9,167.77,76.3725]
[1641386023977,24.5134,167.9,167.77,76.3725]
[1641386024578,24.5134,167.9,167.78,33.0013]
[1641386024980,24.5134,167.9,167.79,1.47846154]
[1641386025181,24.5134,167.9,167.8,8.56]
[1641386025381,0.06,167.9,167.8,9.06]
[1641386025582,0.06,167.9,167.81,25.70046154]
[1641386025781,0.06,167.9,167.82,8.56]
[1641386025984,0.06,167.9,167.82,9.32]
[1641386026181,0.06,167.9,167.83,23.26440261]
[1641386026380,0.06,167.9,167.83,23.76440261]
[1641386026582,0.06,167.9,167.83,48.38860261]
[1641386028486,0.06,167.9,167.84,10.03846154]
[1641386028683,0.06,167.9,167.85,75.6384]
[1641386028887,0.06,167.9,167.86,8.56]
[1641386029287,0.06,167.9,167.86,33.89206154]
[1641386030092,0.06,167.9,167.87,1.47846154]
[1641386030290,0.06,167.9,167.88,8.56]
[1641386030490,0.06,167.9,167.88,8.82]
[1641386030691,0.06,167.9,167.89,60.47846154]
[1641386030890,0.06,167.9,167.89,69.53846154]
[1641386031091,0.06,167.9,167.89,69.79846154]
[1641386032190,1.68330423,168.03,167.9,60.40081938]
[1641386032392,1.68330423,168.03,167.91,23.2801]
[1641386032591,1.68330423,168.03,167.91,23.5401]
[1641386032797,1.68330423,168.03,167.91,24.0401]
[1641386033498,2.95106573,168.02,167.91,24.0401]
[1641386034522,2.95106573,168.02,167.91,25.57856154]
[1641386034723,2.95106573,168.02,167.92,8.56]
[1641386034925,2.95106573,168.02,167.92,9.06]
[1641386035223,80.81290423,168.06,167.92,10.79846154]
[1641386035422,80.81290423,168.06,167.93,23.2713]
[1641386035622,80.81290423,168.06,167.93,31.8313]
[1641386035823,80.81290423,168.06,167.94,1.47846154]
[1641386036024,80.81290423,168.06,167.94,1.73846154]
[1641386036228,2.55545017,168.05,167.94,2.23846154]
[1641386037123,4.2387544,168.05,167.94,2.23846154]
[1641386038126,4.2387544,168.05,167.94,0.76]
[1641386038328,1.68330423,168.04,167.94,0.26]
[1641386038529,1.68330423,168.04,167.93,32.5913]
[1641386039528,1.68330423,168.04,167.93,34.06976154]
[1641386040429,1.68330423,168.04,167.94,0.06]
[1641386040629,1.68330423,168.04,167.95,8.56]
[1641386040831,1.68330423,168.04,167.95,10.53846154]
[1641386041031,2.55545017,168.05,167.95,10.79846154]
[1641386041430,2.55545017,168.05,167.96,1.47846154]
[1641386041632,2.55545017,168.05,167.98,28.09305139]
[1641386041830,1.68330423,168.08,167.98,37.15305139]
[1641386042033,1.68330423,168.08,167.98,38.89151293]
[1641386042734,3.91325452,168.08,167.98,38.89151293]
[1641386043134,2.22995029,168.08,167.98,38.89151293]
[1641386043934,1.68330423,168.09,167.98,38.89151293]
[1641386044135,1.68330423,168.09,167.99,0.06]
[1641386044336,1.68330423,168.09,168.0,8.56]
[1641386044536,1.68330423,168.09,168.0,10.29846154]
[1641386044736,1.68330423,168.09,168.01,0.06]
[1641386044936,1.68330423,168.09,168.02,8.56]
[1641386045136,1.68330423,168.1,168.03,0.06]
[1641386045337,1.68330423,168.1,168.05,22.80403167]
[1641386045539,6.70852324,168.14,168.06,8.56]
[1641386045936,3.35851683,168.14,168.06,10.79846154]
[1641386046137,6.12729507,168.14,168.06,9.32]
[1641386046938,4.44399084,168.14,168.06,9.32]
[1641386047335,4.44399084,168.14,168.06,9.06]
[1641386047536,1.68330423,168.13,168.06,9.06]
[1641386048338,1.68330423,168.13,168.06,0.5]
[1641386048538,2.7412145,168.11,168.06,0.5]
[1641386048841,2.7412145,168.11,168.03,25.86206216]
[1641386049037,4.42451873,168.11,168.03,25.86206216]
[1641386049839,2.7412145,168.11,168.03,25.86206216]
[1641386050840,4.42451873,168.11,168.03,25.86206216]
[1641386052041,4.42451873,168.11,168.03,26.12206216]
[1641386053042,1.68330423,168.11,168.03,26.12206216]
[1641386053242,1.68330423,168.1,168.03,26.12206216]
[1641386053845,4.23e-06,168.12,168.04,90.03846154]
[1641386054148,4.23e-06,168.12,168.05,0.06]
[1641386054445,4.23e-06,168.12,168.06,8.56]
[1641386054844,4.23e-06,168.12,168.06,9.32]
[1641386055044,1.6752126,168.14,168.07,1.47846154]
[1641386055246,1.6752126,168.14,168.07,10.03846154]
[1641386055445,4.56130888,168.14,168.07,10.79846154]
[1641386055848,4.56130888,168.14,168.07,9.32]
[1641386058046,4.56130888,168.14,168.07,9.06]
[1641386058450,1.6752126,168.14,168.07,10.53846154]
[1641386059447,1.6752126,168.14,168.07,10.79846154]
[1641386062751,2.49236786,168.16,168.07,10.79846154]
[1641386066759,2.49236786,168.16,168.07,9.06]
[1641386069893,2.49236786,168.16,168.07,9.32]
[1641386071897,2.49236786,168.16,168.07,9.06]
[1641386072097,2.49236786,168.16,168.07,0.5]
[1641386072299,11.05236786,168.16,168.07,0.5]
[1641386072499,11.55236786,168.16,168.04,0.5]
[1641386072698,24.5044,168.15,168.0,24.2561]
[1641386072899,25.0044,168.15,168.0,24.2561]
[1641386073298,33.56855706,168.15,168.01,53.97226458]
[1641386073699,33.56855706,168.15,168.01,54.47226458]
[1641386074600,33.56855706,168.15,168.01,30.93396458]
[1641386075501,33.56855706,168.15,168.01,31.19396458]
[1641386076904,42.12855706,168.15,168.01,31.19396458]
[1641386079530,33.5644,168.15,168.01,31.19396458]
[1641386087741,33.5644,168.15,168.01,39.75396458]
[1641386088041,33.0644,168.15,168.01,39.75396458]
[1641386088242,24.5044,168.15,168.01,39.75396458]
[1641386088443,24.5044,168.15,168.02,22.8424]
[1641386088641,24.5044,168.15,168.03,8.56]
[1641386088842,24.5044,168.15,168.03,9.06]
[1641386089044,24.5044,168.15,168.03,9.32]
[1641386092245,24.5044,168.15,168.04,24.5986]
[1641386092445,24.5044,168.15,168.04,25.0986]
[1641386092644,24.5044,168.15,168.04,25.3586]
[1641386095250,24.5044,168.15,168.05,8.56]
[1641386095451,24.5044,168.15,168.05,9.06]
[1641386097051,24.5044,168.15,168.05,9.32]
[1641386100463,24.5044,168.15,168.05,9.06]
[1641386100661,24.5044,168.15,168.05,0.5]
[1641386100859,24.5044,168.15,168.01,62.74566458]
[1641386101259,25.0044,168.15,168.01,62.74566458]
[1641386101459,24.5044,168.15,168.01,62.74566458]
[1641386101859,25.0044,168.15,168.01,63.00566458]
[1641386102259,25.0044,168.15,168.01,62.74566458]
[1641386103563,25.0044,168.15,168.01,63.00566458]
[1641386106586,24.5044,168.15,168.01,63.00566458]
[1641386106788,25.0044,168.15,168.01,63.00566458]
[1641386108087,24.5044,168.15,168.01,63.00566458]
[1641386110191,24.5044,168.15,168.01,64.48412612]
[1641386111293,24.5044,168.15,168.01,64.54412612]
[1641386112795,2.49236786,168.16,168.01,80.60070292]
[1641386113600,125.5816,168.17,168.01,89.52160292]
[1641386113898,12.10770641,168.23,168.03,0.06]
[1641386114099,103.7596,168.22,168.04,8.56]
[1641386114297,103.7596,168.22,168.05,0.06]
[1641386114498,105.97162793,168.22,168.06,8.56]
[1641386114699,105.97162793,168.22,168.07,101.2228]
[1641386114899,105.97162793,168.22,168.08,33.70898886]
[1641386115099,105.97162793,168.22,168.09,23.3632]
[1641386115301,105.97162793,168.22,168.1,8.56]
[1641386115499,105.97162793,168.22,168.1,8.82]
[1641386115800,105.97162793,168.22,168.11,24.7064]
[1641386116106,105.97162793,168.22,168.11,24.9664]
[1641386116300,105.97162793,168.22,168.11,25.4664]
[1641386121508,105.97162793,168.22,168.11,25.2064]
[1641386122008,105.97162793,168.22,168.11,0.5]
[1641386122409,105.97162793,168.22,168.1,9.06]
[1641386122810,106.47162793,168.22,168.1,9.06]
[1641386123811,106.47162793,168.22,168.1,9.32]
[1641386124010,105.97162793,168.22,168.1,9.32]
[1641386124208,105.97162793,168.22,168.11,23.1798]
[1641386124411,105.97162793,168.22,168.11,23.6798]
[1641386124611,105.97162793,168.22,168.11,23.9398]
[1641386136940,105.97162793,168.22,168.11,23.6798]
[1641386138442,105.97162793,168.22,168.11,23.9398]
[1641386140852,105.97162793,168.22,168.11,23.6798]
[1641386142452,106.47162793,168.22,168.11,23.6798]
[1641386142653,105.97162793,168.22,168.11,23.6798]
[1641386143454,106.47162793,168.22,168.11,23.6798]
[1641386143653,106.47162793,168.22,168.11,23.9398]
[1641386144054,106.47162793,168.22,168.11,23.4398]
[1641386144255,105.97162793,168.22,168.11,23.4398]
[1641386145158,105.97162793,168.22,168.11,23.1798]
[1641386145456,105.97162793,168.22,168.11,23.6798]
[1641386146458,105.97162793,168.22,168.11,23.9398]
[1641386147860,106.47162793,168.22,168.11,23.9398]
[1641386148660,105.97162793,168.22,168.11,23.9398]
[1641386149260,106.47162793,168.22,168.11,23.9398]
[1641386149468,105.97162793,168.22,168.11,32.4998]
[1641386150162,26.76862793,168.22,168.11,32.4998]
[1641386151870,26.76862793,168.22,168.11,32.2398]
[1641386153571,26.76862793,168.22,168.11,32.4998]
[1641386167108,26.76862793,168.22,168.11,32.2398]
[1641386167811,26.76862793,168.22,168.11,23.6798]
[1641386169542,26.76862793,168.22,168.11,23.9398]
[1641386171213,26.76862793,168.22,168.11,23.6798]
[1641386173915,8.56,168.21,168.11,23.6798]
[1641386174116,9.06,168.21,168.07,77.3758]
[1641386174318,22.9641,168.2,168.07,0.5]
[1641386174518,2.90519665,168.18,168.07,0.5]
[1641386174717,35.113755,168.18,168.07,0.5]
[1641386174918,35.613755,168.18,168.05,25.4679]
[1641386175719,35.873755,168.18,168.05,25.4679]
[1641386176324,8.56,168.17,168.05,0.5]
[1641386176518,8.82,168.17,168.05,0.5]
[1641386176721,9.32,168.17,168.02,28.33882232]
[1641386177146,9.32,168.17,168.03,23.9124]
[1641386177348,9.32,168.17,168.03,24.4124]
[1641386177544,11.00223746,168.17,168.03,24.6724]
[1641386177745,10.74223746,168.17,168.03,24.6724]
[1641386178246,9.06,168.17,168.03,24.6724]
[1641386179047,9.32,168.17,168.03,24.6724]
[1641386179649,11.00223746,168.17,168.03,24.6724]
[1641386180451,9.32,168.17,168.03,24.6724]
[1641386181451,9.32,168.17,168.03,0.5]
[1641386181651,32.1952,168.17,168.0,22.5897]
[1641386181850,32.1952,168.17,168.0,23.0897]
[1641386182253,32.1952,168.17,168.0,22.5897]
[1641386182453,1.68223746,168.16,167.97,8.56]
[1641386182653,1.68223746,168.16,167.96,23.5507]
[1641386182654,8.56,168.15,167.96,23.5507]
[1641386182952,12.32,168.15,167.96,24.0507]
[1641386183552,96.7168,168.14,167.96,24.0507]
[1641386183756,10.24223746,168.13,167.96,24.3107]
[1641386183952,27.18877723,168.12,167.96,24.3107]
[1641386184154,29.98180381,168.11,167.96,24.3107]
[1641386184353,24.0516,168.1,167.96,24.3107]
[1641386184552,8.56,168.09,167.96,24.0507]
[1641386184758,23.5731,168.08,167.96,24.0507]
[1641386184953,8.56,168.07,167.93,75.2669]
[1641386185157,26.80837365,168.06,167.95,0.5]
[1641386185355,8.56,168.05,167.95,0.5]
[1641386185760,24.5064,168.04,167.94,29.7059666]
[1641386185958,25.0064,168.04,167.94,30.2059666]
[1641386186159,25.0064,168.04,167.94,30.4659666]
[1641386186957,25.0064,168.04,167.94,54.2788666]
[1641386188359,25.0064,168.04,167.94,0.5]
[1641386188564,33.5664,168.04,167.93,0.5]
[1641386189066,33.8264,168.04,167.88,33.6274]
[1641386189263,33.8264,168.04,167.88,9.06]
[1641386189463,7.51725835,168.03,167.88,0.5]
[1641386189660,31.3488,168.02,167.88,0.5]
[1641386189863,31.8488,168.02,167.87,118.47667488]
[1641386190159,32.1088,168.02,167.87,118.47667488]
[1641386191161,31.8488,168.02,167.87,25.77667488]
[1641386191361,31.8488,168.02,167.87,27.25513642]
[1641386191561,31.3488,168.02,167.87,27.25513642]
[1641386191761,31.3488,168.02,167.88,32.2977]
[1641386192060,31.3488,168.02,167.88,33.0577]
[1641386192263,8.56,168.02,167.89,1.47846154]
[1641386192461,8.56,168.02,167.89,2.23846154]
[1641386192662,11.13347365,168.06,167.9,8.62]
[1641386192861,11.63347365,168.06,167.91,100.3719]
[1641386193061,11.63347365,168.06,167.91,100.6319]
[1641386193261,11.63347365,168.06,167.91,101.1319]
[1641386193460,24.6009,168.05,167.91,101.1319]
[1641386193666,24.6009,168.05,167.91,102.61036154]
[1641386193864,3.07347365,168.06,167.92,8.56]
[1641386194064,2.57347365,168.06,167.92,9.32]
[1641386194264,2.57347365,168.06,167.93,1.47846154]
[1641386194464,2.57347365,168.06,167.94,28.93232941]
[1641386194864,2.57347365,168.06,167.94,29.69232941]
[1641386196064,2.57347365,168.06,167.94,38.25232941]
[1641386196665,2.57347365,168.06,167.94,37.99232941]
[1641386198065,2.57347365,168.06,167.94,38.25232941]
[1641386199066,8.56,168.09,167.94,38.25232941]
[1641386199268,49.4645,168.1,167.95,24.3733]
[1641386199567,49.4645,168.1,167.96,8.56]
[1641386199970,49.4645,168.1,167.96,9.32]
[1641386200170,2.62553551,168.09,167.96,9.32]
[1641386200571,2.62553551,168.09,167.96,84.8641]
[1641386201772,49.4645,168.1,167.96,84.8641]
[1641386201975,8.56,168.12,167.96,86.34256154]
[1641386202374,8.56,168.12,167.97,0.06]
[1641386202573,8.56,168.12,167.98,8.56]
[1641386202774,2.48811552,168.13,167.99,0.06]
[1641386202974,2.48811552,168.13,168.01,24.90934638]
[1641386203174,2.48811552,168.13,168.01,33.46934638]
[1641386203373,2.48811552,168.13,168.01,34.22934638]
[1641386209684,2.48811552,168.13,168.01,33.96934638]
[1641386211102,2.48811552,168.13,168.01,34.22934638]
[1641386211703,3.96657706,168.13,168.01,34.22934638]
[1641386214105,2.83148821,168.12,168.01,33.96934638]
[1641386215505,3.96657706,168.13,168.01,33.96934638]
[1641386216307,3.96657706,168.13,168.01,34.22934638]
[1641386217407,1.47846154,168.13,168.01,34.22934638]
[1641386217609,24.6182,168.15,168.01,34.22934638]
[1641386217807,1.68223746,168.17,168.01,34.22934638]
[1641386218007,1.68223746,168.17,168.02,104.6088]
[1641386218207,1.68223746,168.17,168.03,8.56]
[1641386218410,79.2798,168.18,168.03,8.56]
[1641386218411,2.48150077,168.16,168.04,24.404]
[1641386218611,2.48150077,168.16,168.05,8.56]
[1641386219012,2.48150077,168.16,168.05,9.32]
[1641386223720,2.48150077,168.16,168.05,10.79846154]
[1641386226824,2.48150077,168.16,168.05,9.32]
[1641386229431,2.48150077,168.16,168.05,9.06]
[1641386230058,2.48150077,168.16,168.06,1.47846154]
[1641386230258,2.48150077,168.16,168.08,25.16485971]
[1641386230456,2.48150077,168.16,168.08,34.22485971]
[1641386230657,2.48150077,168.16,168.08,34.48485971]
[1641386230857,2.48150077,168.16,168.08,9.32]
[1641386231259,2.48150077,168.16,168.08,0.76]
[1641386231457,2.48150077,168.16,168.04,33.464]
[1641386233358,2.48150077,168.16,168.04,33.724]
[1641386235060,2.48150077,168.16,168.04,35.20246154]
[1641386235961,2.48150077,168.16,168.04,33.724]
[1641386242375,2.98150077,168.16,168.04,32.964]
[1641386242878,2.98150077,168.16,168.04,8.56]
[1641386243076,11.54150077,168.16,168.01,8.56]
[1641386243275,23.4402,168.15,168.02,23.99759887]
[1641386243475,0.95819996,168.14,168.02,23.99759887]
[1641386243677,0.95819996,168.14,168.02,0.5]
[1641386243878,0.95819996,168.14,168.01,9.06]
[1641386245980,2.4366615,168.14,168.01,9.06]
[1641386246380,2.9366615,168.14,168.01,9.06]
[1641386246580,2.9366615,168.14,168.01,9.32]
[1641386247180,2.9366615,168.14,168.01,9.06]
[1641386247382,3.1966615,168.14,168.01,9.06]
[1641386247583,8.56,168.13,168.01,0.5]
[1641386247781,23.4313,168.12,168.01,0.5]
[1641386247981,24.1913,168.12,167.97,9.06]
[1641386248181,24.1913,168.12,167.98,28.32635876]
[1641386248385,24.1913,168.12,167.98,28.82635876]
[1641386249082,24.1913,168.12,167.98,29.08635876]
[1641386249383,25.66976154,168.12,167.98,29.08635876]
[1641386249583,24.1913,168.12,167.98,29.08635876]
[1641386249786,25.87353746,168.12,167.98,29.08635876]
[1641386250386,25.87353746,168.12,167.98,37.64635876]
[1641386254493,25.61353746,168.12,167.98,37.64635876]
[1641386255918,25.61353746,168.12,167.99,24.9743]
[1641386256319,25.61353746,168.12,167.99,25.7343]
[1641386256519,23.4313,168.12,168.0,8.56]
[1641386256717,23.9313,168.12,168.0,8.56]
[1641386256917,23.4313,168.12,168.0,9.32]
[1641386257126,23.4313,168.12,168.01,26.28656154]
[1641386257319,23.4313,168.12,168.01,34.84656154]
[1641386257519,23.4313,168.12,168.01,35.60656154]
[1641386258120,23.4313,168.12,168.01,34.1281]
[1641386260223,23.4313,168.12,168.01,35.60656154]
[1641386260421,13.14403823,168.16,168.01,35.60656154]
[1641386260622,24.8823,168.15,168.01,35.60656154]
[1641386261224,24.8823,168.15,168.01,34.1281]
[1641386264734,24.8823,168.15,168.02,1.47846154]
[1641386264933,24.8823,168.15,168.03,8.56]
[1641386265334,24.8823,168.15,168.03,9.32]
[1641386265533,24.8823,168.15,168.04,22.5077]
[1641386265733,24.8823,168.15,168.04,31.0677]
[1641386265933,24.8823,168.15,168.04,31.8277]
[1641386266138,24.8823,168.15,168.05,23.82511737]
[1641386266337,24.8823,168.15,168.05,24.32511737]
[1641386266536,24.8823,168.15,168.05,24.58511737]
[1641386267837,24.8823,168.15,168.06,8.56]
[1641386268038,24.8823,168.15,168.06,10.29846154]
[1641386268238,4.16373823,168.16,168.06,10.79846154]
[1641386268441,4.16373823,168.16,168.06,34.11596154]
[1641386268742,2.48150077,168.16,168.06,34.11596154]
[1641386269138,2.48150077,168.16,168.06,32.6375]
[1641386273145,2.48150077,168.16,168.06,9.06]
[1641386274946,2.98150077,168.16,168.06,9.06]
[1641386275546,2.98150077,168.16,168.06,9.32]
[1641386276550,4.45996231,168.16,168.06,0.76]
[1641386276948,4.45996231,168.16,168.05,24.58511737]
[1641386277349,6.70865788,168.16,168.05,24.58511737]
[1641386277550,8.39089534,168.16,168.05,24.58511737]
[1641386278449,8.39089534,168.16,168.05,0.26]
[1641386278652,23.8918,168.15,168.02,8.56]
[1641386278853,26.07403746,168.15,168.02,8.56]
[1641386279150,1.47846154,168.14,168.02,8.56]
[1641386279351,1.97846154,168.14,168.02,8.56]
[1641386279553,2.23846154,168.14,168.02,8.56]
[1641386279752,10.03846154,168.13,167.99,107.98309282]
[1641386279952,10.53846154,168.13,167.99,108.48309282]
[1641386280152,1.47846154,168.12,167.99,108.48309282]
[1641386280353,1.97846154,168.12,167.99,32.45449282]
[1641386280553,27.734599,168.12,167.99,0.5]
[1641386280753,10.03846154,168.11,167.99,0.5]
[1641386280959,25.97030588,168.1,167.96,9.06]
[1641386281361,26.47030588,168.1,167.96,9.06]
[1641386281558,20.48445418,168.09,167.96,9.06]
[1641386282180,24.4979,168.08,167.96,9.06]
[1641386282778,24.4979,168.08,167.96,9.32]
[1641386283477,24.4979,168.08,167.96,33.4566]
[1641386284878,24.9979,168.08,167.96,33.4566]
[1641386285180,24.4979,168.08,167.96,33.4566]
[1641386288987,24.4979,168.08,167.96,34.93506154]
[1641386289483,80.67590588,168.1,167.96,34.93506154]
[1641386289686,22.8838,168.09,167.96,34.93506154]
[1641386293494,2.96670588,168.1,167.96,34.93506154]
[1641386296497,3.46670588,168.1,167.96,34.93506154]
[1641386297396,3.46670588,168.1,167.96,33.4566]
[1641386297797,3.46670588,168.1,167.96,33.1966]
[1641386298198,29.19524334,168.1,167.96,33.1966]
[1641386299499,29.19524334,168.1,167.96,33.4566]
[1641386299800,37.75524334,168.1,167.96,33.4566]
[1641386300202,1.68223746,168.09,167.96,33.4566]
[1641386300400,2.18223746,168.09,167.96,33.4566]
[1641386300601,6.88248577,168.08,167.96,33.4566]
[1641386300827,23.4861,168.07,167.96,33.4566]
[1641386301829,23.9861,168.07,167.96,33.4566]
[1641386306941,23.4861,168.07,167.96,33.4566]
[1641386308641,23.4861,168.07,167.96,0.5]
[1641386308842,23.4861,168.07,167.94,0.5]
[1641386308843,25.46456154,168.07,167.94,0.5]
[1641386309043,10.24223746,168.06,167.94,0.5]
[1641386309241,88.05373746,168.06,167.91,8.56]
[1641386309443,90.292199,168.06,167.91,9.06]
[1641386309843,2.49273528,168.04,167.91,9.06]
[1641386310042,2.75273528,168.04,167.91,9.06]
[1641386310243,3.25273528,168.04,167.91,9.06]
[1641386310442,4.57001763,168.03,167.91,9.06]
[1641386310643,28.04211763,168.03,167.91,9.06]
[1641386310841,28.54211763,168.03,167.91,9.06]
[1641386311042,28.54211763,168.03,167.91,0.5]
[1641386311443,30.22435509,168.03,167.9,25.07]
[1641386312044,30.22435509,168.03,167.9,25.33]
[1641386314948,28.54211763,168.03,167.9,25.33]
[1641386315351,37.10211763,168.03,167.9,25.33]
[1641386316051,38.78435509,168.03,167.9,25.33]
[1641386317556,37.10211763,168.03,167.9,25.33]
[1641386318858,37.36211763,168.03,167.9,25.07]
[1641386319258,39.04435509,168.03,167.9,25.07]
[1641386319462,39.04435509,168.03,167.89,75.0626]
[1641386319688,39.04435509,168.03,167.89,75.5626]
[1641386320884,1.68223746,168.02,167.89,100.5463]
[1641386321083,8.56,168.01,167.89,100.5463]
[1641386321283,24.3709,168.0,167.89,100.5463]
[1641386321688,24.8709,168.0,167.89,100.0463]
[1641386321884,2.33254462,167.98,167.89,75.0626]
[1641386322288,2.83254462,167.98,167.89,75.0626]
[1641386322885,2.83254462,167.98,167.89,0.5]
[1641386323087,26.14984462,167.98,167.89,0.5]
[1641386323485,26.14984462,167.98,167.86,23.8303]
[1641386325789,25.64984462,167.98,167.86,24.0903]
[1641386329896,26.14984462,167.98,167.86,24.0903]
[1641386330100,25.64984462,167.98,167.86,24.0903]
[1641386332299,26.14984462,167.98,167.86,24.0903]
[1641386332602,26.14984462,167.98,167.86,23.8303]
[1641386332797,34.70984462,167.98,167.86,23.8303]
[1641386333900,34.70984462,167.98,167.86,24.0903]
[1641386334100,25.64984462,167.98,167.86,24.0903]
[1641386336301,26.14984462,167.98,167.86,24.0903]
[1641386338203,25.64984462,167.98,167.86,24.0903]
[1641386338405,25.64984462,167.98,167.86,32.6503]
[1641386338605,25.64984462,167.98,167.86,34.12876154]
[1641386339204,2.33254462,167.98,167.86,34.12876154]
[1641386339407,2.33254462,167.98,167.86,34.18876154]
[1641386340105,2.33254462,167.98,167.86,44.0867604]
[1641386343410,22.6071,168.02,167.86,44.0867604]
[1641386344712,2.42351852,168.01,167.86,44.0867604]
[1641386360158,2.42351852,168.01,167.86,43.8267604]
[1641386362762,2.42351852,168.01,167.86,33.92876154]
[1641386362969,8.56,168.0,167.86,32.4503]
[1641386363164,8.56,168.0,167.86,31.9503]
[1641386363361,9.32,168.0,167.86,31.9503]
[1641386363567,24.0576,167.99,167.86,31.9503]
[1641386363764,5.18400703,167.98,167.86,31.9503]
[1641386363964,5.68400703,167.98,167.86,23.3903]
[1641386364166,24.3256,167.97,167.86,23.3903]
[1641386364365,24.8256,167.97,167.86,23.8903]
[1641386364564,25.0856,167.97,167.86,0.06]
[1641386364763,2.26314423,167.95,167.86,0.06]
[1641386364964,35.97944423,167.95,167.86,0.06]
[1641386368466,35.47944423,167.95,167.86,0.06]
[1641386373470,24.6563,167.95,167.86,0.06]
[1641386373672,24.6563,167.95,167.83,8.62]
[1641386373874,24.6563,167.95,167.83,9.38]
[1641386374073,24.6563,167.95,167.84,23.4401]
[1641386374473,24.6563,167.95,167.84,24.2001]
[1641386374672,2.64591428,167.94,167.84,24.2001]
[1641386375273,2.64591428,167.94,167.84,23.9401]
[1641386376575,2.64591428,167.94,167.84,24.2001]